Cogmind - Beta 15 @@@ ROGUE MODE // 2025.09.06 @ 03:49:58 Player: shapeshifter Result: Destroyed by H-88 Terminator with KE Penetrator Performance ------------- Evolutions (8) 4000 Regions Visited (17) 3400 Robots Destroyed (179) 895 Value Destroyed (7949) 7949 Prototype IDs (39) 780 Alien Tech Used (2) 400 Bonus (13121) 13121 TOTAL SCORE: 30545 Bonus ------- High Alert Combat Kills 1270 Follower Combat Kills 4801 Entered DSFs 500 Met Imprinter 300 Was Imprinted 300 Built Enhanced Grunts 300 A7 Reached Mainframe 300 Met R17 at Cetus 500 Used Core Reset Matrix 3000 Met Sigix 2000 Friendly Fire -150 Cogmind --------- Core Integrity 0/1450 Matter 217/300 Energy 153/700 System Corruption 0% Temperature Cool (0) Movement Core (50) Location -2/Quarantine Parts ------- > --- POWER (2) -------- (None) > --- PROPULSION (6) --- (None) > --- UTILITY (11) ----- Experimental Energy Well Advanced Quantum Shading Machine > --- WEAPON (4) ------- (None) > --- INVENTORY (5) ---- Advanced Energy Well (0) Potential Cannon Gamma Bomb Array Peak State ------------ > --- POWER ------------ Light Quantum Reactor Light Quantum Reactor > --- PROPULSION ------- Heavy Siege Treads Heavy Siege Treads Heavy Siege Treads > --- UTILITY ---------- Advanced Heat Sink High-capacity Storage Unit Advanced Energy Well Advanced Energy Well Experimental Energy Well Machine Analyzer Long-range Sensor Array Improved Signal Interpreter Core Analyzer Centrium Medium Armor Plating AEGIS Remote Shield > --- WEAPON ----------- Quantum Rifle Enhanced Quantum Rifle Enhanced Nova Cannon Enhanced Nova Cannon > --- INVENTORY -------- Particle Reactor Biometal Medium Treads Thunder Leg Impulse Thruster Array Impulse Thruster Array Advanced Energy Well Precision Matter Filter Heavy Armor Plating Advanced Thermal Shield Potential Cannon Fusion Bomb Launcher Plasma Cutter GAL Module [Rating: 174] Favorites ----------- Power Ion Engine Engine Ion Engine Power Core Micro Fission Core Reactor Quantum Reactor Propulsion Wheel Treads Light Treads Leg Multireflex Exoskeleton Wheel Wheel Hover Unit Improved Airjet Flight Unit Impulse Thruster Array Utility Medium Armor Plating Device Advanced Heat Sink Storage Huge Storage Unit Processor Improved Signal Interpreter Hackware Improved Hacking Suite Protection Medium Armor Plating Weapon Improved Assault Rifle Energy Gun Storm Laser Energy Cannon Enhanced Nova Cannon Ballistic Gun Improved Assault Rifle Launcher Grenade Launcher Special Weapon Plasma Cutter Slashing Weapon Centrium Greatsword Build | -11 -10 -10 -9 -9 -7 -6 -6 -5 -5 -5 -5 -4 -4 -3 -3 -2 -2 ------- Run | Yrd Mat Min Mat Min Zio Pro Fac Fac Ext Cet Arc Fac DSF Res Tes Res Qua Slots Evolved 16 | . . . 2 . . . 6 2 . . . 2 . 2 . 2 . Power 1 | . . . . . . . 1 . . . . . . . . . . Propulsion 4 | . . . . . . . 2 . . . . . . . . 2 . Utility 9 | . . . 1 . . . 2 2 . . . 2 . 2 . . . Weapon 2 | . . . 1 . . . 1 . . . . . . . . . . Parts Attached 169 | 7 . 1 23 3 6 1 13 28 13 14 4 1 5 4 13 28 5 Power 24 | 1 . . 2 . 1 1 2 3 . 2 3 . . 1 4 3 1 Engine 7 | 1 . . 2 . 1 1 2 . . . . . . . . . . Core 2 | . . . . . . . . 2 . . . . . . . . . Reactor 15 | . . . . . . . . 1 . 2 3 . . 1 4 3 1 Propulsion 33 | 2 . . 5 3 . . 4 3 . 2 . . 1 . 1 11 1 Treads 15 | 2 . . . 3 . . 4 . . 2 . . . . . 4 . Leg 7 | . . . . . . . . 2 . . . . 1 . 1 2 1 Wheel 8 | . . . 5 . . . . . . . . . . . . 3 . Hover 1 | . . . . . . . . 1 . . . . . . . . . Flight 2 | . . . . . . . . . . . . . . . . 2 . Utility 67 | 2 . . 8 . 2 . 3 19 6 5 . 1 4 2 6 9 . Device 33 | 1 . . . . . . 2 9 4 2 . 1 4 2 3 5 . Storage 10 | 1 . . 2 . . . . 3 . 1 . . . . 1 2 . Processor 5 | . . . . . . . 1 1 . 1 . . . . 1 1 . Hackware 2 | . . . . . . . . 1 . . . . . . . 1 . Protection 17 | . . . 6 . 2 . . 5 2 1 . . . . 1 . . Artifact . | . . . . . . . . . . . . . . . . . . Weapon 45 | 2 . 1 8 . 3 . 4 3 7 5 1 . . 1 2 5 3 Energy Gun 10 | . . . . . . . . 2 3 1 1 . . . . 2 1 Energy Cannon 7 | . . . . . . . . . 2 . . . . . 1 3 1 Ballistic Gun 24 | 2 . . 8 . 3 . 4 1 1 4 . . . 1 . . . Ballistic Cannon . | . . . . . . . . . . . . . . . . . . Launcher 2 | . . 1 . . . . . . . . . . . . 1 . . Special Weapon 1 | . . . . . . . . . 1 . . . . . . . . Impact Weapon . | . . . . . . . . . . . . . . . . . . Slashing Weapon 1 | . . . . . . . . . . . . . . . . . 1 Piercing Weapon . | . . . . . . . . . . . . . . . . . . Special Melee Weapon . | . . . . . . . . . . . . . . . . . . Unidentified Prototypes 26 | . . . 1 . . . 1 7 2 6 . . . . 3 4 2 Corrupted Parts 6 | . . . . . . . . . . 3 3 . . . . . . System Corruption 26 | . . . . . . . . . . 14 12 . . . . . . Parts Lost 54 | . . . 6 1 . . . 8 5 3 . . . . 13 5 13 Power 9 | . . . 1 . . . . 1 1 . . . . . 3 1 2 Propulsion 9 | . . . 1 1 . . . . . . . . . . 1 3 3 Utility 29 | . . . 2 . . . . 7 3 2 . . . . 8 . 7 Weapon 7 | . . . 2 . . . . . 1 1 . . . . 1 1 1 Highest Loss Streak 13 | . . . 3 1 . . . 2 2 3 . . . . 3 3 13 To Critical Strikes 3 | . . . . . . . . . . . . . . . . 2 1 Average Backups 15 | 2 4 5 17 24 21 20 18 14 13 21 22 20 20 10 9 11 10 Power . | . 1 1 1 1 1 . . . . 2 4 4 4 1 . . 1 Propulsion 3 | 1 2 2 4 6 6 5 3 3 3 2 2 2 1 1 . 2 1 Utility 5 | . . 1 5 8 6 6 7 5 3 7 8 6 8 4 4 4 3 Weapon 4 | . 1 1 6 8 7 7 6 4 4 7 6 7 6 2 2 2 3 Tool/Special . | . . . . . . . . . . . . . . . . . . Unused Backups 57 | . . . 5 . 2 3 3 17 . 6 2 . 3 5 3 1 7 Power 6 | . . . 1 . . . . 1 . 2 . . . . 1 . 1 Propulsion 12 | . . . . . . 2 . 4 . 3 . . 2 . 1 . . Utility 21 | . . . 2 . . 1 1 6 . 1 1 . 1 2 1 1 4 Weapon 16 | . . . 2 . 2 . 1 6 . . 1 . . 3 . . 1 Tool/Special 2 | . . . . . . . 1 . . . . . . . . . 1 Average Slot Usage (%) 84 | . 100 100 98 100 97 100 94 75 76 76 87 88 87 76 63 74 45 Engine 5 | . 14 14 10 11 11 11 11 5 . . . . . . . . . Core 1 | . . . . . . . . 1 7 4 . . . . . . . Reactor 2 | . . . . . . . . 3 2 5 10 10 10 4 6 6 2 Treads 6 | . 28 28 5 19 . . 17 5 . 9 11 10 6 . . 8 . Leg 3 | . . . . . . . . 8 11 1 . . 1 4 4 1 . Wheel 6 | . . . 16 2 21 22 7 . . . . . . . . 1 3 Device 12 | . 14 14 2 . . . 9 20 16 16 17 25 26 28 21 8 9 Storage 10 | . 14 14 11 11 11 11 6 5 10 5 5 5 5 7 12 16 12 Processor 4 | . . . . . . . 5 5 5 10 11 10 10 9 7 12 9 Protection 8 | . . . 18 22 22 22 9 4 5 4 5 5 5 4 1 2 . Energy Gun 2 | . . . . . . . . 3 9 3 . 8 10 2 . 5 . Ballistic Gun 15 | . 28 25 32 33 30 33 25 6 . 8 22 11 10 10 3 . . Peak Build Rating 174 | 7 7 7 18 18 27 27 62 98 97 137 138 148 152 159 151 174 131 Average Rating 72 | 4 7 7 13 17 24 26 46 89 95 110 137 147 148 137 128 144 88 On Entrance 69 | . 7 7 7 18 18 27 26 62 97 95 137 138 148 147 137 70 114 Naked Turns . | . . . . . . . . . . . . . . . . . . Heaviest Build 159 | 14 14 16 109 109 113 113 127 131 79 155 155 159 159 90 90 156 66 Greatest Support 210 | 40 40 40 40 40 20 20 80 80 72 160 160 160 160 90 90 210 85 Greatest Overweight (x) 12 | . . . 10 2 5 5 12 1 1 1 . . 1 . 12 8 1 Average Overweight (x) 1 | . . . 3 2 5 5 3 . . . . . . . . . . Largest Inventory Capacity 25 | 8 8 8 25 25 25 25 25 25 15 25 25 25 25 25 15 20 20 Average Capacity 19 | 7 8 8 24 25 25 25 25 17 15 24 25 25 25 15 15 19 13 Most Carried 25 | 5 5 7 25 25 25 25 25 25 15 25 25 24 25 25 15 20 20 Average Carried 17 | 3 4 5 17 24 24 24 23 16 14 23 24 23 24 15 14 15 12 Final Capacity 25 | 8 8 8 25 25 25 25 25 25 15 25 25 25 25 15 15 20 5 Final Carried 25 | 4 5 7 25 24 25 25 25 23 15 25 25 23 25 15 9 17 4 Class Distribution -------------------- 31% | Tank 26% | Scavenger-Tank 13% | Mutant 9% | Scavenger-Mutant 7% | Commander-Tank 6% | Messiah-Tank Dominant Class ---------------- Mutant | -10/Materials Mutant | -10/Mines Tank | -9/Materials Scavenger-Tank | -9/Mines Tank | -7/Zion Tank | -6/Proximity Caves Tank | -6/Factory Messiah-Tank | -5/Factory Commander-Tank | -5/Extension Scavenger-Tank | -5/Cetus Scavenger-Tank | -5/Archives Scavenger-Tank | -4/Factory Scavenger-Tank | -4/DSF Scavenger-Tank | -3/Research Scavenger-Mutant | -3/Testing Scavenger-Tank | -2/Research Mutant | -2/Quarantine Resources | -11 -10 -10 -9 -9 -7 -6 -6 -5 -5 -5 -5 -4 -4 -3 -3 -2 -2 ----------- Run | Yrd Mat Min Mat Min Zio Pro Fac Fac Ext Cet Arc Fac DSF Res Tes Res Qua Matter Collected 4928 | 224 74 40 978 156 60 144 585 456 327 320 105 . 109 403 427 520 . Remotely . | . . . . . . . . . . . . . . . . . . Salvage Created 8224 | 11 105 . 1131 244 . 124 399 1560 1073 182 183 . 139 463 1667 816 127 Parts 411 | 4 5 . 96 12 . 5 22 70 36 10 6 . 8 28 79 27 3 Haulers Intercepted 5 | . . . 2 . . . . 2 . . . . . . . 1 . Recyclers Shooed 2 | 1 . . . . . . . . . . . . . . 1 . . Parts Field Recycled . | . . . . . . . . . . . . . . . . . . Retrieved Matter . | . . . . . . . . . . . . . . . . . . Parts Self-Destructed 11 | . . . . . . 11 . . . . . . . . . . . Prevented 4 | . . . . . . 4 . . . . . . . . . . . Kills | -11 -10 -10 -9 -9 -7 -6 -6 -5 -5 -5 -5 -4 -4 -3 -3 -2 -2 ------- Run | Yrd Mat Min Mat Min Zio Pro Fac Fac Ext Cet Arc Fac DSF Res Tes Res Qua Combat Hostiles Destroyed 130 | . 2 2 30 6 . 4 5 17 13 2 2 . 4 3 29 10 1 Guns 93 | . 2 . 30 6 . 4 5 16 12 2 2 . 4 3 6 1 . Cannons 12 | . . . . . . . . . . . . . . . 6 5 1 AOE 23 | . . 2 . . . . . . . . . . . . 17 4 . Classes Destroyed 21 | 1 2 1 5 1 . . 4 3 2 . . . . . . 1 1 Worker 12 | . . . 2 . . . . 3 1 . . . . 2 3 1 . Builder 13 | . . . 2 . . . . 2 1 . . . . . 3 5 . Tunneler 2 | 1 . . . . . . . 1 . . . . . . . . . Hauler 5 | . . . 2 . . . . 2 . . . . . . . 1 . Recycler 5 | . . . . . . . . 2 1 . . . . . 1 . 1 Mechanic 2 | . . . . . . . 1 1 . . . . . . . . . Operator 1 | . . . . . . . . 1 . . . . . . . . . Watcher 8 | . 1 . 2 . . . . . 2 1 . . . . 2 . . Swarmer 26 | . . . 15 1 . 3 1 3 . . . . 3 . . . . Grunt 49 | . 2 . 10 4 . 1 1 4 6 . . . . . 19 2 . Brawler 5 | . . . . 1 . . . 1 1 . . . . . . 2 . Duelist 3 | . . . . . . . . . 2 . . . . . . 1 . Sentry 14 | . . . 5 . . . 1 1 2 . 2 . . 2 . 1 . Demolisher 1 | . . . . . . . . . . . . . . . . 1 . Specialist 1 | . . . . . . . . . 1 . . . . . . . . Hunter 5 | . . . . . . . . 2 . . . . 1 . . 2 . Programmer 20 | . . . . . . . 1 6 1 . . . . 1 10 1 . Heavy 1 | . . . . . . . 1 . . . . . . . . . . Behemoth 1 | . . . . . . . 1 . . . . . . . . . . Cetus Guard 2 | . . . . . . . . . . 2 . . . . . . . Enhanced Grunt 2 | . . . . . . . . . . . . . . 2 . . . Alpha 7 1 | . . . . . . . . . . . . . . . . . 1 Assembled 2 | . . 2 . . . . . . . . . . . . . . . Best Kill Streak 12 | 1 2 2 12 5 . 3 4 5 3 2 2 . 3 2 12 5 2 Combat Bots Only 10 | . 2 2 10 5 . 3 3 3 3 1 2 . 3 2 10 4 1 Max Kills in Single Turn 5 | 1 1 1 2 1 . 1 2 2 2 1 1 . 3 1 5 2 1 Gunslinging 2 | . . . 1 . . . . . . . . . 2 . . . . Exploded 4 | . . 1 . . . . . . . . . . . . 4 2 . Melee . | . . . . . . . . . . . . . . . . . . Uniques/NPCs Destroyed . | . . . . . . . . . . . . . . . . . . Combat | -11 -10 -10 -9 -9 -7 -6 -6 -5 -5 -5 -5 -4 -4 -3 -3 -2 -2 -------- Run | Yrd Mat Min Mat Min Zio Pro Fac Fac Ext Cet Arc Fac DSF Res Tes Res Qua Hostile Shots Fired 1386 | . 5 3 144 32 . 17 22 106 111 20 1 . 7 31 453 244 190 Missed 442 | . 2 1 32 9 . 7 5 38 24 7 1 . 4 13 173 77 49 Hits 944 | . 3 2 112 23 . 10 17 68 87 13 . . 3 18 280 167 141 Melee 9 | . . 2 . . . . . . 2 . . . . . . 5 . Projectile 935 | . 3 . 112 23 . 10 17 68 85 13 . . 3 18 280 162 141 AOE 2 | . . . . . . . . . . . . . . . 1 1 . Critical Strikes 52 | . . . 1 . . . 1 2 4 1 . . . 1 23 10 9 Part Disruptions 3 | . . . . . . . . 1 . . . . . . 2 . . Damage Taken 16890 | . 40 168 1228 268 . 169 471 960 1361 281 . 54 80 235 5708 2816 3051 Core 2687 | . 17 22 129 12 . 18 9 85 139 61 . . . 13 802 245 1135 Absorbed by Shields 2968 | . . . . . . . 167 294 451 99 . 20 23 243 388 1253 30 Redirected to Shielding 233 | . . . . . . . . 233 . . . . . . . . . Ignored by Resistances 124 | . . . . . . . 20 104 . . . . . . . . . Core Remaining (%) 78 | 100 . 84 . . . 60 98 . . . 71 . 100 . 37 . . Volleys Fired 380 | 2 5 3 90 11 . 12 17 47 42 12 4 . 6 21 49 49 10 Largest 4 | 2 2 1 3 3 . 3 4 4 4 4 4 . 4 3 3 4 1 Hottest 399 | 40 40 30 66 66 . 69 107 250 342 230 140 . 230 150 200 399 300 Shots Fired 866 | 4 10 3 266 33 . 36 66 56 94 35 15 . 18 58 86 76 10 Gun 768 | 4 10 . 266 33 . 36 66 56 93 35 15 . 18 58 57 17 4 Cannon 85 | . . . . . . . . . 1 . . . . . 23 55 6 Launcher 12 | . . 3 . . . . . . . . . . . . 5 4 . Special 1 | . . . . . . . . . . . . . . . 1 . . Kinetic 588 | 4 10 . 266 33 . 36 66 13 . 19 15 . 12 57 57 . . Thermal 243 | . . . . . . . . 42 76 12 . . 6 1 24 72 10 Explosive 12 | . . 3 . . . . . . . . . . . . 5 4 . Electromagnetic 23 | . . . . . . . . 1 18 4 . . . . . . . Robot Hit Streak 15 | 1 10 . 10 7 . 8 15 8 10 7 6 . 9 8 5 9 1 Robot Miss Streak 16 | 1 . . 5 2 . 8 8 16 16 2 2 . 2 2 3 5 1 Penetration Max 1 | . . . . . . . . 1 . 1 1 . 1 1 1 . . Secondary Targets 15 | . 1 . 9 1 . 1 . . . . . . 2 . 1 . . Max Gunslinging Chain 2 | . 1 . 2 1 . 1 . . . . . . 2 . 1 . . Capacitor 23 | . . . . . . . . . . . . . . . 23 . . Shots Hit Robots 534 | 2 9 . 158 25 . 18 43 49 67 25 7 . 11 37 48 29 6 Core Hits 356 | 1 6 4 76 11 . 6 15 62 50 8 3 . 6 15 56 34 3 Critical Kills 6 | . . . 1 1 . . . . . . . . 1 2 . 1 . Critical Parts Destroyed 12 | . . . . . . . 1 . . . 1 . 2 2 4 . 2 Critical Strikes 23 | . . . 1 1 . . 1 . 3 . 1 . 3 6 4 1 2 Burn 3 | . . . . . . . . . 3 . . . . . . . . Meltdown 1 | . . . . . . . . . . . . . . . . 1 . Destroy 19 | . . . 1 1 . . 1 . . . 1 . 3 6 4 . 2 Melee Attacks 3 | . . . . . . . . . . . . . . . . . 3 Impact . | . . . . . . . . . . . . . . . . . . Slashing 3 | . . . . . . . . . . . . . . . . . 3 Piercing . | . . . . . . . . . . . . . . . . . . Sneak Attacks . | . . . . . . . . . . . . . . . . . . Combat Hostiles . | . . . . . . . . . . . . . . . . . . Follow-up Attacks . | . . . . . . . . . . . . . . . . . . Damage Inflicted 22426 | 20 100 114 1562 398 . 298 782 2867 2847 765 267 . 367 1136 7237 2914 752 Guns 12963 | 20 100 . 1548 398 . 298 782 2867 2752 765 267 . 367 1136 1264 307 92 Cannons 3540 | . . . . . . . . . 36 . . . . . 1927 1077 500 Explosions 5730 | . . 114 . . . . . . 59 . . . . . 4027 1530 . Melee 141 | . . . . . . . . . . . . . . . . . 141 Ramming 40 | . . . 14 . . . . . . . . . . . 7 . 19 Kinetic 6698 | 20 100 . 1548 398 . 298 782 235 . 417 267 . 261 1108 1264 . . Thermal 11822 | . . . . . . . . 2632 2627 239 . . 106 28 3963 1635 592 Explosive 3396 | . . 114 . . . . . . . . . . . . 2003 1279 . Electromagnetic 329 | . . . . . . . . . 220 109 . . . . . . . Impact . | . . . . . . . . . . . . . . . . . . Slashing 141 | . . . . . . . . . . . . . . . . . 141 Piercing . | . . . . . . . . . . . . . . . . . . Highest Corruption 32 | . . . 1 1 1 1 3 1 6 20 32 . . 1 14 1 1 Average Corruption 5 | . . . 1 1 1 1 2 1 3 14 22 . . 1 8 1 1 Corruption Purged 1 | . . . . . . . . 1 . . . . . . . . . Corruption Blocked . | . . . . . . . . . . . . . . . . . . Effects 139 | . . . 2 2 . 1 12 5 35 24 10 . . . 44 2 2 Message Errors 28 | . . . . . . . 2 2 8 2 3 . . . 9 1 1 Matter Fused 31 | . . . 2 . . 1 3 1 6 6 3 . . . 8 . 1 Heat Flow Errors 13 | . . . . . . . 2 . 3 3 . . . . 5 . . Energy Discharges 11 | . . . . 1 . . . . 5 3 . . . . 2 . . Parts Rejected 3 | . . . . . . . . . 1 . . . . . 2 . . Data Loss (minor) 25 | . . . . . . . 3 2 5 7 1 . . . 7 . . Data Loss (major) 13 | . . . . . . . 2 . 4 2 1 . . . 4 . . Misfires 1 | . . . . . . . . . . 1 . . . . . . . Alerts 5 | . . . . 1 . . . . . . . . . . 4 . . Misdirections 3 | . . . . . . . . . . . 1 . . . 2 . . Weapon Failures 6 | . . . . . . . . . 3 . 1 . . . 1 1 . Overload Shots . | . . . . . . . . . . . . . . . . . . Overflow Damage 1547 | . . . . . . . . . . . . . . . 1222 85 240 Projectiles 996 | . . . . . . . . . . . . . . . 732 24 240 Explosions 551 | . . . . . . . . . . . . . . . 490 61 . Melee . | . . . . . . . . . . . . . . . . . . Knockbacks . | . . . . . . . . . . . . . . . . . . Impact . | . . . . . . . . . . . . . . . . . . Kinetic . | . . . . . . . . . . . . . . . . . . Secondary . | . . . . . . . . . . . . . . . . . . Self-Inflicted Damage 586 | . . 105 7 . . . . . . . . . . . 217 201 56 Shots 12 | . . 3 . . . . . . . . . . . . 5 3 1 Rammed 6 | . . . 1 . . . . . . . . . . . . . 5 Targets Rammed 7 | . . . 1 . . . . . . . . . . . 1 . 5 Kicked 1 | . . . . . . . . . . . . . . . 1 . . Crushed . | . . . . . . . . . . . . . . . . . . Highest Temperature 456 | . 18 . 220 252 . 123 277 378 368 198 54 . 48 . 456 386 201 Average Temperature 99 | . 10 . 62 130 . 47 83 92 143 104 26 . 32 . 144 98 86 Received Heat Transfer 2732 | . 24 . 402 144 . 45 21 158 255 18 . . . 37 1223 192 213 Effects 15 | . . . . . . . 3 . 2 . . . . . 6 4 . Shutdowns 5 | . . . . . . . . . . . . . . . 4 1 . Energy Bleed 3 | . . . . . . . . . 2 . . . . . 1 . . Interference 5 | . . . . . . . 3 . . . . . . . . 2 . Damage (minor) 2 | . . . . . . . . . . . . . . . 1 1 . Siege Activations . | . . . . . . . . . . . . . . . . . . Martial Activations . | . . . . . . . . . . . . . . . . . . Shielding Activations . | . . . . . . . . . . . . . . . . . . Robots Disrupted . | . . . . . . . . . . . . . . . . . . Combat Hostiles . | . . . . . . . . . . . . . . . . . . Robots Corrupted . | . . . . . . . . . . . . . . . . . . Combat Hostiles . | . . . . . . . . . . . . . . . . . . Parts Fried 1 | . . . . . . . . . . 1 . . . . . . . Impact Corruptions . | . . . . . . . . . . . . . . . . . . Robots Melted 3 | . . . . . . . . 1 1 . . . . . . 1 . Combat Hostiles 2 | . . . . . . . . 1 1 . . . . . . . . Parts Melted 27 | . . . . . . . . 8 7 . . . . . 6 6 . Heat Transferred 12502 | . . . . . . . . 3343 4016 370 . . 148 37 2935 1542 111 Parts Sabotaged 1 | . . . . . . . . . . . . . . . . 1 . Parts Stolen . | . . . . . . . . . . . . . . . . . . Parts Stripped . | . . . . . . . . . . . . . . . . . . Power Chain Reactions 1 | . . . . . . . . . 1 . . . . . . . . Alert | -11 -10 -10 -9 -9 -7 -6 -6 -5 -5 -5 -5 -4 -4 -3 -3 -2 -2 ------- Run | Yrd Mat Min Mat Min Zio Pro Fac Fac Ext Cet Arc Fac DSF Res Tes Res Qua Maximum Alert Level 5 | . . . 2 1 . . . 2 4 3 2 . 1 2 3 5 3 Low Security (%) 43 | 100 100 100 73 53 . . 100 69 . . . 100 43 44 11 . . Level 1 29 | . . . 21 46 . . . 13 59 . 78 . 56 32 59 42 . Level 2 14 | . . . 5 . . . . 16 20 49 21 . . 23 28 13 . Level 3 9 | . . . . . . . . . 14 50 . . . . . 18 100 Level 4 2 | . . . . . . . . . 5 . . . . . . 20 . Level 5 . | . . . . . . . . . . . . . . . . 4 . High Security . | . . . . . . . . . . . . . . . . . . Max Security . | . . . . . . . . . . . . . . . . . . Sterilizations 1 | . . . . . . . . . . . . . 1 . . . . Peak Influence 1616 | 5 50 6 416 254 . . 196 625 1205 764 423 119 394 566 814 1616 898 Initial 898 | . . 6 . 154 . . 25 71 291 669 270 119 62 221 306 457 898 Average 321 | . 12 . 158 192 . . 66 197 464 700 369 103 249 276 360 745 847 Influence Increases 9409 | 5 57 1 859 231 . 285 384 1285 1734 375 183 . 372 625 1164 1665 184 Destroy 0b10 Robot/C 4440 | . 40 . 600 160 . 180 200 600 740 160 80 . 160 260 580 660 20 Destroy 0b10 Robot/NC 370 | 5 5 . 40 . . . 15 80 65 10 . . . 15 45 85 5 Destroy Leader 758 | . 12 . 138 30 . 30 72 130 76 . . . 20 60 64 126 . Allied During Kill 1852 | . . . . 11 . 75 82 140 697 170 80 . 180 242 . 175 . Successful Hack 43 | . . . 20 . . . . 2 21 . . . . . . . . Disable Machine 525 | . . . 15 15 . . . 105 75 15 15 . . 30 105 90 60 Anti-Garrison Action 300 | . . . . . . . . 150 . . . . . . . 150 . Destroy Structure 1016 | . . 1 1 . . . 15 78 60 20 8 . 12 18 340 379 84 Partial Spotted 15 | . . . . . . . . . . . . . . . . . 15 Lose Combat Pursuer 90 | . . . 45 15 . . . . . . . . . . 30 . . Influence Decreases 8597 | 5 40 18 463 402 225 245 278 834 1135 895 516 254 67 473 896 881 970 Entered New Map 3528 | . . 11 . 242 225 . 15 75 306 527 406 224 27 173 240 357 700 Time Decay 3830 | 5 40 7 403 150 . 185 263 540 559 278 90 30 . 180 526 434 140 Lost Part 540 | . . . 60 10 . . . 80 50 30 . . . . 130 50 130 Lost Ally 699 | . . . . . . 60 . 139 220 60 20 . 40 120 . 40 . Squads Dispatched 46 | . . . 3 . . . 5 10 4 . . . 1 3 6 11 3 Investigation 7 | . . . 1 . . . . . 1 . . . . 1 . 2 2 Extermination 12 | . . . . . . . 1 3 . . . . . 1 4 2 1 Reinforcement 13 | . . . 2 . . . 1 3 1 . . . 1 1 2 2 . Assault 9 | . . . . . . . . 3 2 . . . . . . 4 . Garrison 5 | . . . . . . . 3 1 . . . . . . . 1 . Intercept . | . . . . . . . . . . . . . . . . . . Searches Triggered . | . . . . . . . . . . . . . . . . . . Construction Impeded 3 | . . . . . . . . . 1 . . . . . 1 1 . Haulers Reinforced 5 | . . . . . . . . 2 . . . . . 1 1 1 . Active Scanning Responses . | . . . . . . . . . . . . . . . . . . Cargo Convoy Interrupts 1 | . . . . . . . . 1 . . . . . . . . . Stealth | -11 -10 -10 -9 -9 -7 -6 -6 -5 -5 -5 -5 -4 -4 -3 -3 -2 -2 --------- Run | Yrd Mat Min Mat Min Zio Pro Fac Fac Ext Cet Arc Fac DSF Res Tes Res Qua Distress Signals 18 | . . . 6 . . . 2 2 1 2 . . . . 2 2 1 Communications Jammed 71 | . . . . . . . . . . . . . 1 2 68 . . Distress Signals 71 | . . . . . . . . . . . . . 1 2 68 . . Times Spotted 276 | . 3 2 47 9 . 9 13 33 37 9 6 . 7 12 41 38 10 Peak Tracking Total 15 | . 2 2 5 4 . 4 3 6 6 5 2 . 4 3 15 9 7 Tactical Retreats 6 | . . . 3 1 . . . . . . . . . . 2 . . Traps | -11 -10 -10 -9 -9 -7 -6 -6 -5 -5 -5 -5 -4 -4 -3 -3 -2 -2 ------- Run | Yrd Mat Min Mat Min Zio Pro Fac Fac Ext Cet Arc Fac DSF Res Tes Res Qua Traps Triggered 17 | . . . 2 . . . 4 1 5 . . . 2 . 1 1 1 Indirectly . | . . . . . . . . . . . . . . . . . . Trap Hack Attempts . | . . . . . . . . . . . . . . . . . . Triggered . | . . . . . . . . . . . . . . . . . . Disarmed . | . . . . . . . . . . . . . . . . . . Reprogrammed . | . . . . . . . . . . . . . . . . . . Reused . | . . . . . . . . . . . . . . . . . . Traps Extracted . | . . . . . . . . . . . . . . . . . . Installed . | . . . . . . . . . . . . . . . . . . Triggered . | . . . . . . . . . . . . . . . . . . Machines | -11 -10 -10 -9 -9 -7 -6 -6 -5 -5 -5 -5 -4 -4 -3 -3 -2 -2 ---------- Run | Yrd Mat Min Mat Min Zio Pro Fac Fac Ext Cet Arc Fac DSF Res Tes Res Qua Machines Disabled 40 | . . . 1 1 . . . 8 7 1 1 . . 2 8 7 4 Max in Single Turn 4 | . . . 1 . . . . 1 2 1 1 . . . 2 4 2 Garrison Access 2 | . . . . . . . . 1 . . . . . . . 1 . Machines Repaired . | . . . . . . . . . . . . . . . . . . Machines Dismantled 6 | . . . . . . . . . 3 1 . . . . 2 . . Machines Sabotaged . | . . . . . . . . . . . . . . . . . . Overloaded Fab Kills . | . . . . . . . . . . . . . . . . . . Hacking | -11 -10 -10 -9 -9 -7 -6 -6 -5 -5 -5 -5 -4 -4 -3 -3 -2 -2 --------- Run | Yrd Mat Min Mat Min Zio Pro Fac Fac Ext Cet Arc Fac DSF Res Tes Res Qua Machines Accessed 26 | . . . 5 . . 1 4 2 8 . . 1 . 1 3 . 1 Terminals 17 | . . . 5 . . 1 1 . 8 . . 1 . . . . 1 Fabricators 1 | . . . . . . . 1 . . . . . . . . . . Repair Stations 2 | . . . . . . . . 1 . . . . . . 1 . . Recycling Units 2 | . . . . . . . 2 . . . . . . . . . . Scanalyzers 2 | . . . . . . . . 1 . . . . . . 1 . . Garrison Access 2 | . . . . . . . . . . . . . . 1 1 . . Total Hacks 56 | . . . 15 . . 1 8 4 19 . . 2 . 2 3 . 2 Successful 24 | . . . 10 . . 1 3 3 6 . . 1 . . . . . Failed 32 | . . . 5 . . . 5 1 13 . . 1 . 2 3 . 2 Catastrophic 11 | . . . 2 . . . 1 . 3 . . . . 2 2 . 1 Database Lockouts . | . . . . . . . . . . . . . . . . . . Manual 54 | . . . 11 . . . 6 9 10 1 . . . . 6 8 3 Terminals 41 | . . . 15 . . 1 2 . 19 . . 2 . . . . 2 Fabricators 3 | . . . . . . . 3 . . . . . . . . . . Repair Stations 2 | . . . . . . . . 1 . . . . . . 1 . . Recycling Units 3 | . . . . . . . 3 . . . . . . . . . . Scanalyzers 4 | . . . . . . . . 3 . . . . . . 1 . . Garrison Access 3 | . . . . . . . . . . . . . . 2 1 . . Terminal Hacks 12 | . . . 3 . . 1 1 . 6 . . 1 . . . . . Record 2 | . . . 1 . . 1 . . . . . . . . . . . Prototype ID Bank 1 | . . . 1 . . . . . . . . . . . . . . Open Door 6 | . . . . . . . . . 6 . . . . . . . . Open DSF 2 | . . . . . . . 1 . . . . 1 . . . . . Level Access Points 1 | . . . 1 . . . . . . . . . . . . . . Fabricator Hacks . | . . . . . . . . . . . . . . . . . . Repair Station Hacks . | . . . . . . . . . . . . . . . . . . Recycling Unit Hacks 2 | . . . . . . . 2 . . . . . . . . . . Report Inventory 1 | . . . . . . . 1 . . . . . . . . . . Retrieve Components 1 | . . . . . . . 1 . . . . . . . . . . Scanalyzer 3 | . . . . . . . . 3 . . . . . . . . . Insert Component 3 | . . . . . . . . 3 . . . . . . . . . Garrison Access Hacks . | . . . . . . . . . . . . . . . . . . Unauthorized Hacks 7 | . . . 7 . . . . . . . . . . . . . . Terminals 7 | . . . 7 . . . . . . . . . . . . . . Botnet 2 | . . . 2 . . . . . . . . . . . . . . Skim 5 | . . . 5 . . . . . . . . . . . . . . Fabricators . | . . . . . . . . . . . . . . . . . . Repair Stations . | . . . . . . . . . . . . . . . . . . Recycling Units . | . . . . . . . . . . . . . . . . . . Scanalyzers . | . . . . . . . . . . . . . . . . . . Garrison Access . | . . . . . . . . . . . . . . . . . . Data Cores Recovered 1 | . . . . . . . . 1 . . . . . . . . . Used . | . . . . . . . . . . . . . . . . . . Hacking Detections 19 | . . . 4 . . 1 3 1 4 1 . . . 1 3 . 1 Full Trace Events 3 | . . . . . . . . . 1 . . . . 1 . . 1 Feedback Events . | . . . . . . . . . . . . . . . . . . Feedback Blocked . | . . . . . . . . . . . . . . . . . . Robot Schematics Acquired 3 | . . . . . 3 . . . . . . . . . . . . Robots Built . | . . . . . . . . . . . . . . . . . . Authchips . | . . . . . . . . . . . . . . . . . . Time . | . . . . . . . . . . . . . . . . . . Total Robot Build Rating . | . . . . . . . . . . . . . . . . . . Part Schematics Acquired 23 | . . . . . 13 . . . 10 . . . . . . . . Parts Built . | . . . . . . . . . . . . . . . . . . Authchips . | . . . . . . . . . . . . . . . . . . Time . | . . . . . . . . . . . . . . . . . . Total Part Build Rating . | . . . . . . . . . . . . . . . . . . Parts Repaired . | . . . . . . . . . . . . . . . . . . Time . | . . . . . . . . . . . . . . . . . . Parts Recycled . | . . . . . . . . . . . . . . . . . . Recycled Matter . | . . . . . . . . . . . . . . . . . . Retrieved Matter . | . . . . . . . . . . . . . . . . . . Retrieved Components 2 | . . . . . . . 2 . . . . . . . . . . Parts Scanalyzed . | . . . . . . . . . . . . . . . . . . Part Schematics Acquired . | . . . . . . . . . . . . . . . . . . Parts Damaged . | . . . . . . . . . . . . . . . . . . Bothacking | -11 -10 -10 -9 -9 -7 -6 -6 -5 -5 -5 -5 -4 -4 -3 -3 -2 -2 ------------ Run | Yrd Mat Min Mat Min Zio Pro Fac Fac Ext Cet Arc Fac DSF Res Tes Res Qua Used RIF Installer . | . . . . . . . . . . . . . . . . . . Robots Hacked . | . . . . . . . . . . . . . . . . . . Non-combat . | . . . . . . . . . . . . . . . . . . Combat . | . . . . . . . . . . . . . . . . . . Robot Hacks Applied . | . . . . . . . . . . . . . . . . . . Relay Couplers Released 1 | . . . . . . . . . . . . . . . . 1 . Machine Destruction 1 | . . . . . . . . . . . . . . . . 1 . Fabnet Peak Effective % . | . . . . . . . . . . . . . . . . . . Robots Rewired 14 | . . . . . . . . . 14 . . . . . . . . Allies Hacked 1 | . . . . . . . . . 1 . . . . . . . . Hacks Repelled . | . . . . . . . . . . . . . . . . . . Allies | -11 -10 -10 -9 -9 -7 -6 -6 -5 -5 -5 -5 -4 -4 -3 -3 -2 -2 -------- Run | Yrd Mat Min Mat Min Zio Pro Fac Fac Ext Cet Arc Fac DSF Res Tes Res Qua Total Allies 53 | . . . . 3 4 . 2 5 31 5 . . . . . 3 . Largest Group 17 | . . . . 3 7 7 4 6 17 17 14 12 11 9 . 2 . Highest-Rated Group 1137 | . . . . 40 193 193 223 417 848 1137 957 779 712 592 . 269 . Highest-Rated Ally 269 | . . . . 16 39 39 85 85 159 159 151 96 96 96 . 269 . Zionite Dispatches 7 | . . . . . . . 1 2 2 . . . . . . 2 . Heavy 4 | . . . . . . . 1 1 1 . . . . . . 1 . Light 2 | . . . . . . . . 1 1 . . . . . . . . Experimental 1 | . . . . . . . . . . . . . . . . 1 . Total Orders . | . . . . . . . . . . . . . . . . . . Ally Attacks 585 | . . . . 8 . 40 38 64 218 49 22 . 29 55 . 62 . Total Damage 21104 | . . . . 61 . 592 1617 2846 4146 1317 1058 . 753 1763 . 6951 . Kills 127 | . . . . 2 . 5 7 17 37 9 2 . 4 11 . 33 . Allies Corrupted 6 | . . . . . . . . 1 4 . . . . 1 . . . Allies Melted 1 | . . . . . . . . . 1 . . . . . . . . Intel | -11 -10 -10 -9 -9 -7 -6 -6 -5 -5 -5 -5 -4 -4 -3 -3 -2 -2 ------- Run | Yrd Mat Min Mat Min Zio Pro Fac Fac Ext Cet Arc Fac DSF Res Tes Res Qua Active Infowar (turns) 7300 | 30 259 880 401 . . . 766 925 815 . . . 136 363 1470 1074 181 Optics 1500 | . . . . . . . 766 734 . . . . . . . . . Sensors 1784 | . . . . . . . . 191 814 . . . . . . 622 157 Structural 1 | . . . . . . . . . 1 . . . . . . . . Seismic 1570 | 30 259 880 401 . . . . . . . . . . . . . . Machine Analysis 1939 | . . . . . . . . . . . . . . . 697 1061 181 Jamming 1679 | . . . . . . . . . . . . . 136 363 1180 . . Robot Analysis Total . | . . . . . . . . . . . . . . . . . . Derelict Logs Recovered 4 | . . 1 . 1 2 . . . . . . . . . . . . Drone Launches . | . . . . . . . . . . . . . . . . . . Drone Recoveries . | . . . . . . . . . . . . . . . . . . Zionite Intel Received 3 | . . . . . . . . . 1 . . . . . 1 1 . Branch Access 1 | . . . . . . . . . . . . . . . . 1 . Prototype Schematics 1 | . . . . . . . . . 1 . . . . . . . . Active Terminals 1 | . . . . . . . . . . . . . . . 1 . . Exploration | -11 -10 -10 -9 -9 -7 -6 -6 -5 -5 -5 -5 -4 -4 -3 -3 -2 -2 ------------- Run | Yrd Mat Min Mat Min Zio Pro Fac Fac Ext Cet Arc Fac DSF Res Tes Res Qua Turns Passed 13587 | 89 259 880 1565 306 1652 468 854 1598 1641 617 192 79 185 363 1470 1074 295 Spaces Moved 6889 | 52 153 382 662 82 1027 272 366 850 846 236 82 43 74 198 789 512 263 Core 108 | 15 . . . . . . . . . . . . . . 1 1 91 Treads 1680 | 37 153 382 93 82 . . 133 129 . 193 82 43 50 . . 303 . Legs 2684 | . . . . . . . . 721 846 43 . . 24 198 788 60 4 Wheels 2266 | . . . 569 . 1027 272 233 . . . . . . . . 82 83 Hover . | . . . . . . . . . . . . . . . . . . Flight 151 | . . . . . . . . . . . . . . . . 66 85 Fastest Speed 42 | 50 160 160 135 320 155 155 155 110 110 110 160 160 160 140 140 42 42 Average Speed 150 | 128 160 160 164 320 155 155 194 148 118 155 160 160 189 140 140 157 65 Slowest Speed 650 | 160 160 160 320 320 155 155 260 247 180 180 160 160 250 140 650 465 140 Overloaded Moves . | . . . . . . . . . . . . . . . . . . Propulsion Burnouts . | . . . . . . . . . . . . . . . . . . Robots Hopped . | . . . . . . . . . . . . . . . . . . Potential Cave-ins . | . . . . . . . . . . . . . . . . . . Cave-ins Triggered . | . . . . . . . . . . . . . . . . . . Exploration Rate (%) 44 | 6 17 85 60 21 89 55 14 22 86 67 77 2 83 10 59 17 33 Regions Visited 17 Branch Regions 9 Pre-discovered Areas 5 | . . . 3 . 2 . . . . . . . . . . . . Known Exits Taken 10 | . . . 1 . 1 . . 1 1 1 1 1 . 1 1 1 . Unknown Exits Taken 6 | 1 1 1 . 1 . 1 1 . . . . . . . . . . Scrap Searched 5 | . . 1 . . 2 2 . . . . . . . . . . . Spaces Dug 56 | . . . . . . . . . . . . . . . 25 31 . Terrain Destroyed 428 | . . 1 . . . . . . 5 1 6 . . . 248 113 54 Melee . | . . . . . . . . . . . . . . . . . . Projectile 82 | . . . . . . . . . . 1 6 . . . 11 22 42 AOE 346 | . . 1 . . . . . . 5 . . . . . 237 91 12 Terrain Rammed . | . . . . . . . . . . . . . . . . . . Walls Destroyed . | . . . . . . . . . . . . . . . . . . Machines Disabled . | . . . . . . . . . . . . . . . . . . Actions | -11 -10 -10 -9 -9 -7 -6 -6 -5 -5 -5 -5 -4 -4 -3 -3 -2 -2 --------- Run | Yrd Mat Min Mat Min Zio Pro Fac Fac Ext Cet Arc Fac DSF Res Tes Res Qua Total 9363 | 71 158 647 982 102 1090 293 472 1069 1324 454 131 52 111 243 1072 717 375 Wait 1228 | . . 260 143 7 39 1 44 47 236 130 32 6 6 . 173 53 51 Move 6872 | 51 152 381 661 81 1026 271 365 849 845 235 81 42 73 197 788 511 263 Hop . | . . . . . . . . . . . . . . . . . . Pick Up 222 | 11 1 2 41 . 7 4 12 33 11 29 2 . 9 2 12 36 10 Fast Attach 37 | . . . 1 . . . 7 9 5 1 4 . . 1 4 3 2 Attach 135 | 7 . . 9 1 3 . 8 17 12 16 . 2 3 4 13 32 8 Detach 36 | . . . 1 . 1 . 1 4 2 4 . . . 2 3 12 6 Swap 80 | . . 1 15 2 5 1 5 14 12 4 4 2 3 3 4 5 . Drop 174 | . . . 20 . 9 4 13 43 4 15 4 . 11 13 13 16 9 Fire 380 | 2 5 3 90 11 . 12 17 47 42 12 4 . 6 21 49 49 10 Melee 3 | . . . . . . . . . . . . . . . . . 3 Ram 6 | . . . 1 . . . . . . . . . . . . . 5 Kick 1 | . . . . . . . . . . . . . . . 1 . . Crush . | . . . . . . . . . . . . . . . . . . Escape Stasis 34 | . . . . . . . . 6 20 . . . . . . . 8 Rewire 111 | . . . . . . . . . 111 . . . . . . . . Trap . | . . . . . . . . . . . . . . . . . . Miscellaneous 44 | . . . . . . . . . 24 8 . . . . 12 . . Route ------- -11/Scrapyard -10/Materials -10/Mines (discovered 2 exits: *Mat / [*Sub]) -9/Materials (discovered 4 exits: *Mat x3 / *Min) -9/Mines (discovered 3 exits: *Mat x2 / [*Zio]) -7/Zion (discovered 2 exits: Dee / *Pro) -6/Proximity Caves -6/Factory -5/Factory -5/Extension (discovered 2 exits: *Fac / *Cet) -5/Cetus (discovered 2 exits: *Fac / *Arc) -5/Archives (discovered 3 exits: *Fac / [*Hub x2]) -4/Factory -4/DSF -3/Research -3/Testing -2/Research (discovered 2 exits: *Qua x2) -2/Quarantine History --------- Turn | Location | Event 10 | -11/Scrapyard | Discovered new exit (range 15) 90 | -11/Scrapyard | Entered Materials 173 | -10/Materials | Discovered new exit (range 16) 300 | -10/Materials | Build established: Mutant 349 | -10/Materials | Entered Mines 351 | -10/Mines | Met a Derelict bent on vengeance 690 | -10/Mines | Discovered new exit (range 7) 882 | -10/Mines | Learned Materials terminal intel 1023 | -10/Mines | Discovered new exit (range 11) 1039 | -10/Mines | Excavation squad dispatched 1039 | -10/Mines | A large section of the Mines collapsed 1142 | -10/Mines | Received a Rocket Launcher from a helpful Derelict 1229 | -10/Mines | Entered Materials 1229 | -9/Materials | Evolved 2 slots: Utility x1, Weapon x1 1230 | -9/Materials | Loaded intel: 12 terminal locations 1573 | -9/Materials | Build established: Tank 1647 | -9/Materials | Destroyed 10 combat bots 1674 | -9/Materials | Identified exit to Materials 2256 | -9/Materials | Learned Storage emergency access door positions 2370 | -9/Materials | Learned 8 Materials zone layouts 2413 | -9/Materials | Identified exit to Mines 2466 | -9/Materials | Learned location of Zion (-7) 2536 | -9/Materials | Learned 2 Storage zone layouts 2587 | -9/Materials | Learned 2 Materials zone layouts 2646 | -9/Materials | Learned location of 1 exit from Storage 2684 | -9/Materials | Lost 3 parts (1u2w) 2794 | -9/Materials | Entered Mines 2919 | -9/Mines | Assisted by bots powering up and referring to "LRC-V3" 2985 | -9/Mines | Build established: Scavenger-Tank 3069 | -9/Mines | Assembled infested the area 3074 | -9/Mines | Assisted by a Guerilla fighting off Assembled 3082 | -9/Mines | A Derelict revealed a hidden shortcut to a safe place 3091 | -9/Mines | Learned Materials non-interactive machine intel 3100 | -9/Mines | Entered Zion 3100 | -7/Zion | Accompanied by 3 allies 3169 | -7/Zion | System corruption cleaned by Quarantine Array 3213 | -7/Zion | Learned location of Data Miner (-6) 3224 | -7/Zion | Found CR-A16's Pointy Stick 3335 | -7/Zion | Learned Factory emergency access door positions 3368 | -7/Zion | Learned location of Warlord (-5) 3508 | -7/Zion | Found Prototype Energy Gun 3529 | -7/Zion | Build established: Tank 3611 | -7/Zion | Identified exit to Deep Caves 3661 | -7/Zion | Identified exit to Proximity Caves 3824 | -7/Zion | Found GAL Module 4146 | -7/Zion | Given A8's code to call for help 4425 | -7/Zion | Met Imprinter 4452 | -7/Zion | Imprinted 4455 | -7/Zion | Declared Zion's savior 4752 | -7/Zion | Entered Proximity Caves 4752 | -6/Proximity Caves | Accompanied by 7 allies 5115 | -6/Proximity Caves | Discovered new exit (range 9) 5180 | -6/Proximity Caves | Lost 3 allies 5220 | -6/Proximity Caves | Entered Factory 5220 | -6/Factory | Accompanied by 2 allies 5220 | -6/Factory | Evolved 6 slots: Power x1, Propulsion x2, Utility x2, Weapon x1 5349 | -6/Factory | Zion Heavy squad teleported in 5418 | -6/Factory | Identified exit to DSF 5486 | -6/Factory | Spotted B-75 Beast 5489 | -6/Factory | Garrison activated, responded to threat 5510 | -6/Factory | Destroyed B-75 Beast 5948 | -6/Factory | Discovered new exit (range 9) 6074 | -6/Factory | Entered another Factory area 6074 | -5/Factory | Accompanied by 3 allies 6074 | -5/Factory | Evolved 2 slots: Utility x2 6077 | -5/Factory | Build established: Scavenger-Tank 6108 | -5/Factory | Zion Light squad teleported in 6400 | -5/Factory | Found Prototype Protection 6401 | -5/Factory | Identified Zio. Weapon Casing 6495 | -5/Factory | Identified Storm Laser 6497 | -5/Factory | Found Zio. Weapon Casing 6647 | -5/Factory | Zion Heavy squad teleported in 6780 | -5/Factory | Build established: Messiah-Tank 6847 | -5/Factory | Cargo convoy interrupted 7200 | -5/Factory | Lost 3 allies 7267 | -5/Factory | Garrison activated, responded to threat 7574 | -5/Factory | First assault squad dispatched 7615 | -5/Factory | Terminal network hard line cut 7634 | -5/Factory | Discovered new exit (range 15) 7671 | -5/Factory | Identified exit to Extension 7672 | -5/Factory | Entered Extension 7706 | -5/Extension | Rescued a captive Derelict 7753 | -5/Extension | Rescued a captive Derelict 7916 | -5/Extension | Rescued a captive Derelict 7917 | -5/Extension | Rescued a captive Derelict 8144 | -5/Extension | Build established: Commander-Tank 8212 | -5/Extension | Rescued a captive Derelict 8212 | -5/Extension | Rescued a captive Derelict 8238 | -5/Extension | Rescued a captive Derelict 8620 | -5/Extension | Spotted B-75 Beast 8623 | -5/Extension | Allies destroyed B-75 Beast 8634 | -5/Extension | Spotted B-75 Beast 8651 | -5/Extension | Lost 5 allies 8655 | -5/Extension | Allies destroyed B-75 Beast 8872 | -5/Extension | First assault squad dispatched 8908 | -5/Extension | Rescued A7 8987 | -5/Extension | Zion Heavy squad teleported in 9024 | -5/Extension | Lost 4 allies 9030 | -5/Extension | Retrieved Zion intel report: Prototype Schematics 9031 | -5/Extension | Zion Light squad teleported in 9061 | -5/Extension | Rescued a captive Derelict 9110 | -5/Extension | Rescued a captive Derelict 9111 | -5/Extension | Rescued a captive Derelict 9125 | -5/Extension | Rescued a captive Derelict 9139 | -5/Extension | Terminal network hard line cut 9217 | -5/Extension | Build established: Scavenger-Tank 9260 | -5/Extension | Discovered new exit (range 12) 9261 | -5/Extension | Discovered new exit (range 8) 9278 | -5/Extension | Identified exit to Cetus 9313 | -5/Extension | Entered Cetus 9313 | -5/Cetus | Accompanied by 14 allies (A7) 9318 | -5/Cetus | Acquired a Cetus Manufacturing Module code from A7 9328 | -5/Cetus | Spotted Cetus Guard 9328 | -5/Cetus | Spotted Cetus Guard 9331 | -5/Cetus | Spotted Cetus Guard 9332 | -5/Cetus | Spotted Cetus Guard 9332 | -5/Cetus | Destroyed Cetus Guard 9339 | -5/Cetus | Allies destroyed Cetus Guard 9340 | -5/Cetus | Allies destroyed Cetus Guard 9355 | -5/Cetus | Allies destroyed Cetus Guard 9372 | -5/Cetus | Lost 3 parts (2u1w) 9403 | -5/Cetus | System corruption reached 10% 9492 | -5/Cetus | Started Cetus Manufacturing Module 9517 | -5/Cetus | Manufactured an Enhanced Grunt 9529 | -5/Cetus | Escorted A7 to Cetus Mainframe 9542 | -5/Cetus | Manufactured an Enhanced Grunt 9567 | -5/Cetus | Manufactured an Enhanced Grunt 9592 | -5/Cetus | Manufactured an Enhanced Grunt 9617 | -5/Cetus | Manufactured an Enhanced Grunt 9643 | -5/Cetus | Discovered new exit (range 15) 9676 | -5/Cetus | Spotted Cetus Guard 9676 | -5/Cetus | Spotted Cetus Guard 9679 | -5/Cetus | Spotted Cetus Guard 9679 | -5/Cetus | Spotted Cetus Guard 9684 | -5/Cetus | Allies destroyed Cetus Guard 9691 | -5/Cetus | Allies destroyed Cetus Guard 9694 | -5/Cetus | Allies destroyed Cetus Guard 9695 | -5/Cetus | Destroyed Cetus Guard 9710 | -5/Cetus | Found Prototype Device 9716 | -5/Cetus | Identified Exp. Thermal Shield 9720 | -5/Cetus | Lost 3 allies 9731 | -5/Cetus | Discovered new exit (range 15) 9751 | -5/Cetus | Scared off Revision 17 9835 | -5/Cetus | Identified exit to Archives 9930 | -5/Cetus | Entered Archives 9930 | -5/Archives | Accompanied by 14 allies (A7) 9935 | -5/Archives | Received a hacking code to weaken MAIN.C 9986 | -5/Archives | Discovered new exit (range 15) 9999 | -5/Archives | Discovered new exit (range 16) 10016 | -5/Archives | Discovered new exit (range 15) 10078 | -5/Archives | Identified exit to Factory 10090 | -5/Archives | System corruption reached 30% 10122 | -5/Archives | Entered Factory 10122 | -4/Factory | Accompanied by 12 allies 10122 | -4/Factory | Evolved 2 slots: Utility x2 10195 | -4/Factory | Identified exit to DSF 10201 | -4/Factory | Entered DSF 10201 | -4/DSF | Accompanied by 11 allies 10227 | -4/DSF | Additional patrols routed to DSF 10318 | -4/DSF | Sterilization system engaged 10338 | -4/DSF | Ambient heat levels rising (+10) 10341 | -4/DSF | Discovered new exit (range 14) 10351 | -4/DSF | Found Quantum Capacitor 10353 | -4/DSF | Ambient heat levels rising (+10) 10368 | -4/DSF | Ambient heat levels rising (+10) 10377 | -4/DSF | Identified exit to Research 10383 | -4/DSF | Ambient heat levels rising (+10) 10386 | -4/DSF | Entered Research 10386 | -3/Research | Accompanied by 9 allies 10386 | -3/Research | Evolved 2 slots: Utility x2 10665 | -3/Research | Lost 5 allies 10694 | -3/Research | Discovered new exit (range 13) 10727 | -3/Research | Identified exit to Testing 10749 | -3/Research | Entered Testing 10877 | -3/Testing | Found Prototype Device 10878 | -3/Testing | Identified AEGIS Remote Shield 10982 | -3/Testing | Found Fusion Bomb Launcher 11134 | -3/Testing | Found Prototype Energy Cannon 11135 | -3/Testing | Identified Potential Cannon 11139 | -3/Testing | Found Potential Cannon 11435 | -3/Testing | Build established: Scavenger-Mutant 11645 | -3/Testing | System corruption reached 10% 11917 | -3/Testing | Retrieved Zion intel report: Active Terminals 11960 | -3/Testing | Lost 3 parts (1p2u) 11960 | -3/Testing | Superbehemoth self-activated to run performance analysis 11981 | -3/Testing | Spotted Superbehemoth 12035 | -3/Testing | Lost 3 parts (1p1u1w) 12164 | -3/Testing | Terminal network hard line cut 12180 | -3/Testing | Discovered new exit (range 15) 12183 | -3/Testing | Core integrity fell below 50% 12201 | -3/Testing | Identified exit to Research 12219 | -3/Testing | Entered Research 12219 | -2/Research | Evolved 2 slots: Propulsion x2 12234 | -2/Research | Destroyed 10 combat bots 12294 | -2/Research | Build established: Mutant 12313 | -2/Research | Found Prototype Device 12314 | -2/Research | Identified Exp. Shield Generator 12598 | -2/Research | Build established: Tank 12781 | -2/Research | Zion Heavy squad teleported in 12784 | -2/Research | Garrison activated, responded to threat 12838 | -2/Research | Retrieved Zion intel report: Branch Access 12838 | -2/Research | Identified exit to Quarantine 12839 | -2/Research | Zion Experimental squad teleported in 12888 | -2/Research | Lost 3 parts (1p1n1w) 12961 | -2/Research | Build established: Scavenger-Tank 12969 | -2/Research | First assault squad dispatched 13293 | -2/Research | Entered Quarantine 13356 | -2/Quarantine | Spotted Alpha 7 13375 | -2/Quarantine | Found Gamma Bomb Array 13424 | -2/Quarantine | Found Alien Artifact 13424 | -2/Quarantine | Identified Core Reset Matrix 13424 | -2/Quarantine | Used Core Reset Matrix 13428 | -2/Quarantine | Detected hypermatrix surge 13428 | -2/Quarantine | Sensed 12 artifacts in vicinity 13440 | -2/Quarantine | Found Core Cannon 13478 | -2/Quarantine | Destroyed Alpha 7 13509 | -2/Quarantine | Core integrity fell below 50% 13556 | -2/Quarantine | Met incapacitated Sigix Warrior 13556 | -2/Quarantine | Lockdown squad dispatched 13585 | -2/Quarantine | Core integrity fell below 20% 13588 | -2/Quarantine | Destroyed by H-88 Terminator with KE Penetrator Last Messages --------------- 13553_ Door Terminal disabled. 13555_ Critical hit (Burn: +37). Sigix Containment Pod: What have they done to you? Where are all your components? I cannot do anything in this state. Take me to our ship immediately. 13556_ ALERT: Sigix Quarantine Chamber accessed without registered guard. Dispatching lockdown squad. 13559_ Penetrated by Slug. 13559_ Particle Reactor destroyed. 13564_ Penetrated by Slug. 13564_ Imp. Signal Interpreter destroyed. 13582_ Slug penetrates Sigix Quarantine Chamber. 13583_ Slammed into G-73 Enforcer. 13585_ Penetrated by Slug. 13585_ Slug penetrates Sigix Quarantine Chamber. 13586_ Slammed into H-88 Terminator. 13587_ Sigix Lab disabled. 13588_ Slammed into H-88 Terminator. 13588_ Slug penetrates Sigix Quarantine Chamber. 13588_ Penetrated by Slug. Map ----- +----------------------------------------------------+ | | | | | | | | | | | | | | | | | | | | | ????????????????????????????????? | | ????????????????????????????????? | | ????????????????????????????????? | | ????????????????????????????????? | | ????????????????????????????????? | | ????????????????????????????????? | | ????????????????????????????????? | | ???###########??????????????????? | | ???#"""""""""#??????????????????? | | ???#"""""""""#??????????????????? | | ???#""" h """#??????????????????? | | ???#""g"""g""#??????????????????? | | ???#"" "&"h""#??????????????????? | | ???#""h""" ""#??????????????????? | | ???#""" g """#??????????????????? | | ???#"" @ ""#??????????????????? | | ???#""T h ""#??????????????????? | | ???#### ####??????????????????? | | ????#" ; #???????????????????? | | ????#;; ; #???????????????????? | | ????##; ;;######????????###???? | | ?????#; ; #?#?? ??# | | ?????## # """ """ #?# ? ? # | | ??????# # """ """ #?# """"""" # | | ??????# # """ """ #?# " # | | ####### # #?# """ """ # | | # """ # # ! ??# " " "/" # | | # "T" # # ! ! ????? """ """ ? | | # # # ???????? ??? | | # / ^ ###+#############+##### | | # """ # ^ | | # """ # | | # """ # | | ############## ########### """ | | ?????????????# #?????????# """ | | ???????????? #?????????# """ | | ??????????# #?????????# | | ??????????# #?????????# """ | | ??????????#### #?????????# """ | | ?????????????# #?????????# """ | +----------------------------------------------------+ Best States ------------- Heat Dissipation 84 Coolant Potential 65 Energy Generation 46 Energy Capacity 2015 Matter Stores 300 Matter Capacity 300 Sight Range 22 Robot Scan Range 18 Terrain Scan Density 10 Jamming Range 16 Power Amplification 30 Additional Mass Support 25 Armor Coverage 450 Resistance: TH 30 Resistance: EM 25 Weapon Shielding 100 Weapon Cycling 15 Phase Shifting 5 Evasion (%) 70 Targeting Accuracy 8 Core Analysis 6 Recoil Reduction 6 Matter Filtering 50 Particle Charging 20 Offensive Hacking 12 Item Schematics ----------------- None Robot Schematics ------------------ None Fabricated ------------ Nothing Repaired ---------- Nothing Alien Tech Used ----------------- Core Reset Matrix Core Cannon Achievements -------------- None Challenges ------------ None Game ------ Seed SpectralMiningPlatform Manual? 0 Play Time 02:31:58 Cumulative 261.5 hours Start 2025.09.05 @ 22:15:06 End 2025.09.06 @ 03:49:58 Sessions 9 Manual Loads 0 Difficulty Rogue Special Mode None Game No. 384 Rogue 384 Adventurer 0 Explorer 0 Win Type - Total 5 Types 4/0/1/0/0/0/0/0/0/0 Lore% 83 Gallery% 79 Achievement% 61 Wizard Run 0 Options --------- Layout 0 ASCII 0 Keyboard 0 Movement Mouse Keybinds 0 Fullscreen 1 Font 24/Smallcaps Map View 76x50 Zoom Use 0% Tactical HUD 1 Map Filters NONE Filters NONE Steam 1 RUN: d9a3d2dc-e06f-46c3-af54-88b68fb71216